[Event "28th CRO-chT 1A-Men 2019"]
[Site "Mali Losinj"]
[Date "2019.10.04"]
[Round "7.16"]
[White "Zovko, Mario"]
[Black "Plenca, Julijan"]
[Result "0-1"]
[ECO "D01"]
[WhiteElo "2324"]
[BlackElo "2423"]
[Annotator "NA"]
[PlyCount "116"]
[EventDate "2019.09.28"]
[EventType "team-tourn"]
[EventCountry "CRO"]
[SourceTitle "playchess.com"]
[Source "ChessBase"]
[SourceQuality "1"]
[TimeControl "40/5400+30:1800+30"]

1. d4 {[%emt 0:08:30]} Nf6 {[%emt 0:00:30]} 2. Nc3 {[%emt 0:00:30]} e6 {[%emt 0:02:30]} 3. Bg5 {[%emt 0:00:30]} c5 {[%emt 0:02:30]} 4. e3 {[%emt 0:03:30]} d5 {[%emt 0:00:30]} 5. Nf3 {[%emt 0:00:30]} Be7 {[%emt 0:00:30]} 6. Bd3 {[%emt 0:01:30]} O-O {[%emt 0:01:30]} 7. O-O {[%emt 0:02:30]} Nc6 {[%emt 0:00:30]} 8. a3 {[%emt 0:10:30]} c4 {[%emt 0:01:30]} 9. Be2 {[%emt 0:00:30]} b5 {[%emt 0:00:30]} 10. Ne5 {[%emt 0:08:30]} Nxe5 {[%emt 0:00:30]} 11. dxe5 {[%emt 0:00:30]} Nd7 {[%emt 0:00:00]} 12. Bxe7 {[%emt 0:00:00]} Qxe7 {[%emt 0:00:00]} 13. f4 {[%emt 0:02:00]} Rb8 {[%emt 0:03:30]} 14. Bf3 {[%emt 0:02:30]} Rd8 {[%emt 0:06:30]} 15. Ne2 {[%emt 0:05:30]} Rb6 {[%emt 0:04:30]} 16. Qe1 {[%emt 0:02:30]} f6 {[%emt 0:02:30]} 17. exf6 {[%emt 0:00:30]} Nxf6 {[%emt 0:03:30]} 18. Qg3 {[%emt 0:02:30]} Bd7 {[%emt 0:01:30]} 19. Nd4 {[%emt 0:05:30]} Re8 {[%emt 0:08:30]} 20. Rad1 {[%emt 0:07:30]} a5 {[%emt 0:03:30]} 21. Qg5 {[%emt 0:04:30]} c3 {[%emt 0:06:30]} 22. b3 {[%emt 0:05:30]} h6 {[%emt 0:01:30]} 23. Qe5 {[%emt 0:00:00]} Qxa3 {[%emt 0:02:30]} 24. Ra1 {[%emt 0:01:00]} Qb4 {[%emt 0:00:00]} 25. g4 {[%emt 0:00:30]} Qd6 {[%emt 0:01:00]} 26. Qxd6 {[%emt 0:01:30]} Rxd6 {[%emt 0:00:30]} 27. Rxa5 {[%emt 0:00:30]} b4 {[%emt 0:01:30]} 28. g5 {[%emt 0:04:30]} hxg5 {[%emt 0:00:30]} 29. fxg5 {[%emt 0:00:00]} Nh7 {[%emt 0:00:30]} 30. h4 {[%emt 0:01:12]} Nf8 {[%emt 0:00:00]} 31. Bh5 {[%emt 0:01:44]} g6 {[%emt 0:02:00]} 32. Bf3 {[%emt 0:00:31]} Kh8 {[%emt 0:00:30]} 33. Be2 {[%emt 0:02:59]} e5 {[%emt 0:01:30]} 34. Nf3 {[%emt 0:00:23]} Bf5 {[%emt 0:00:30]} 35. Ne1 {[%emt 0:00:22]} d4 {[%emt 0:00:30]} 36. exd4 {[%emt 0:01:06]} Rxd4 {[%emt 0:00:00]} 37. Kf2 {[%emt 0:09:29]} e4 {[%emt 0:02:00]} 38. Rxf5 {[%emt 0:06:00]} e3+ {[%emt 0:00:30]} 39. Kg3 {[%emt 0:00:12]} gxf5 {[%emt 0:00:30]} 40. Rxf5 {[%emt 0:00:00]} Rd2 {[%emt 0:00:00]} 41. Bb5 {[%emt 0:00:32]} Red8 {[%emt 0:07:00]} 42. Rf3 {[%emt 0:02:30]} R2d5 {[%emt 0:03:30]} 43. Be2 {[%emt 0:01:30]} Re8 {[%emt 0:02:30]} 44. Bd3 {[%emt 0:07:30]} Nd7 {[%emt 0:00:30]} 45. g6 {[%emt 0:09:43]} Re7 {[%emt 0:00:30]} 46. Rf4 {[%emt 0:01:04]} Nc5 {[%emt 0:02:30]} 47. Bc4 {[%emt 0:00:38]} Rd1 {[%emt 0:01:30]} 48. Nf3 {[%emt 0:07:18]} Kg7 {[%emt 0:02:30]} 49. Be2 {[%emt 0:01:17]} Rd6 {[%emt 0:07:30]} 50. h5 {[%emt 0:00:31]} Ne4+ {[%emt 0:00:30]} 51. Kh4 {[%emt 0:00:50]} Rf6 {[%emt 0:00:30]} 52. Rg4 {[%emt 0:00:30]} Rf5 {[%emt 0:02:30]} 53. Nd4 {[%emt 0:01:35]} Rf2 {[%emt 0:00:30]} 54. Kh3 {[%emt 0:00:01]} Re5 {[%emt 0:01:30]} 55. Rg1 {[%emt 0:01:14]} Nf6 {[%emt 0:04:30]} 56. Ra1 {[%emt 0:02:25]} Nxh5 {[%emt 0:00:30]} 57. Ra7+ {[%emt 0:00:08]} Kxg6 {[%emt 0:00:30]} 58. Bd3+ {[%emt 0:00:03]} Kg5 {[%emt 0:00:30]} 0-1

[Event "28th CRO-chT 1A-Men 2019"]
[Site "Mali Losinj"]
[Date "2019.10.04"]
[Round "7.17"]
[White "Bobanac, Miro"]
[Black "Sindik, Ervin"]
[Result "1/2-1/2"]
[ECO "A36"]
[WhiteElo "2257"]
[BlackElo "2283"]
[Annotator "NA"]
[PlyCount "28"]
[EventDate "2019.09.28"]
[EventType "team-tourn"]
[EventCountry "CRO"]
[SourceTitle "playchess.com"]
[Source "ChessBase"]
[SourceQuality "1"]
[TimeControl "40/5400+30:1800+30"]

1. Nf3 {[%emt 0:00:30]} g6 {[%emt 0:00:30]} 2. g3 {[%emt 0:01:30]} Bg7 {[%emt 0:00:30]} 3. Bg2 {[%emt 0:00:00]} c5 {[%emt 0:00:30]} 4. O-O {[%emt 0:01:00]} Nc6 {[%emt 0:00:00]} 5. c4 {[%emt 0:01:30]} e6 {[%emt 0:03:00]} 6. Nc3 {[%emt 0:02:30]} Nge7 {[%emt 0:00:30]} 7. e3 {[%emt 0:02:30]} O-O {[%emt 0:00:30]} 8. d4 {[%emt 0:02:30]} cxd4 {[%emt 0:00:30]} 9. Nxd4 {[%emt 0:01:30]} d5 {[%emt 0:01:30]} 10. cxd5 {[%emt 0:01:30]} Nxd4 {[%emt 0:00:30]} 11. exd4 {[%emt 0:00:30]} Nxd5 {[%emt 0:00:30]} 12. Nxd5 {[%emt 0:02:30]} exd5 {[%emt 0:00:30]} 13. Be3 {[%emt 0:02:30]} Be6 {[%emt 0:00:00]} 14. Qb3 {[%emt 0:01:30]} Qd7 {[%emt 0:01:00]} 1/2-1/2

[Event "28th CRO-chT 1A-Men 2019"]
[Site "Mali Losinj"]
[Date "2019.10.04"]
[Round "7.18"]
[White "Zivkovic, Nikola"]
[Black "Brulic, Denis"]
[Result "1-0"]
[ECO "B13"]
[WhiteElo "2139"]
[BlackElo "2230"]
[Annotator "NA"]
[PlyCount "143"]
[EventDate "2019.09.28"]
[EventType "team-tourn"]
[EventCountry "CRO"]
[SourceTitle "playchess.com"]
[Source "ChessBase"]
[SourceQuality "1"]
[TimeControl "40/5400+30:1800+30"]

1. e4 {[%emt 0:00:30]} c6 {[%emt 0:00:30]} 2. d4 {[%emt 0:00:00]} d5 {[%emt 0:00:30]} 3. exd5 {[%emt 0:00:00]} cxd5 {[%emt 0:00:00]} 4. c4 {[%emt 0:00:30]} Nf6 {[%emt 0:01:00]} 5. Nf3 {[%emt 0:00:30]} Nc6 {[%emt 0:03:30]} 6. Nc3 {[%emt 0:00:30]} Be6 {[%emt 0:00:30]} 7. c5 {[%emt 0:03:30]} g6 {[%emt 0:00:30]} 8. h3 {[%emt 0:02:30]} Bg7 {[%emt 0:00:30]} 9. Bb5 {[%emt 0:02:30]} O-O {[%emt 0:03:30]} 10. O-O {[%emt 0:00:30]} Ne4 {[%emt 0:03:30]} 11. Bxc6 {[%emt 0:04:30]} bxc6 {[%emt 0:00:30]} 12. Qa4 {[%emt 0:01:30]} Qc7 {[%emt 0:09:30]} 13. Ne2 {[%emt 0:01:30]} f6 {[%emt 0:04:30]} 14. Re1 {[%emt 0:08:30]} Bf5 {[%emt 0:14:30]} 15. Qa3 {[%emt 0:07:30]} e5 {[%emt 0:01:30]} 16. Nh4 {[%emt 0:05:30]} Bd7 {[%emt 0:00:30]} 17. Be3 {[%emt 0:13:30]} Ng5 {[%emt 0:00:30]} 18. dxe5 {[%emt 0:03:30]} Ne6 {[%emt 0:07:30]} 19. exf6 {[%emt 0:00:30]} Bxf6 {[%emt 0:00:30]} 20. Nf3 {[%emt 0:00:30]} Rab8 {[%emt 0:00:30]} 21. Rab1 {[%emt 0:01:30]} Rb7 {[%emt 0:06:30]} 22. b3 {[%emt 0:02:30]} g5 {[%emt 0:01:30]} 23. Qc1 {[%emt 0:01:30]} h6 {[%emt 0:00:30]} 24. Qd2 {[%emt 0:01:30]} Bc8 {[%emt 0:02:30]} 25. Rbc1 {[%emt 0:01:30]} a5 {[%emt 0:06:30]} 26. Nfd4 {[%emt 0:07:30]} Ng7 {[%emt 0:01:30]} 27. Qd3 {[%emt 0:05:30]} Be5 {[%emt 0:01:30]} 28. Bd2 {[%emt 0:01:30]} Ra7 {[%emt 0:00:30]} 29. Ng3 {[%emt 0:03:30]} Bd7 {[%emt 0:06:30]} 30. Bc3 {[%emt 0:02:02]} Bf4 {[%emt 0:00:30]} 31. Rcd1 {[%emt 0:00:22]} Bxg3 {[%emt 0:07:36]} 32. fxg3 {[%emt 0:00:35]} Bf5 {[%emt 0:00:58]} 33. Nxf5 {[%emt 0:03:00]} Nxf5 {[%emt 0:00:14]} 34. Be5 {[%emt 0:04:25]} Qh7 {[%emt 0:04:21]} 35. Re2 {[%emt 0:03:08]} Re7 {[%emt 0:05:18]} 36. g4 {[%emt 0:04:06]} Nh4 {[%emt 0:00:33]} 37. Qd2 {[%emt 0:00:26]} Rfe8 {[%emt 0:00:35]} 38. Rde1 {[%emt 0:00:14]} Re6 {[%emt 0:01:04]} 39. Bc3 {[%emt 0:00:37]} Re4 {[%emt 0:04:09]} 40. Rxe4 {[%emt 0:00:00]} Rxe4 {[%emt 0:00:00]} 41. Rf1 {[%emt 0:03:05]} Qe7 {[%emt 0:02:42]} 42. Rf2 {[%emt 0:02:30]} Qxc5 {[%emt 0:01:30]} 43. Kh2 {[%emt 0:01:30]} Qd6+ {[%emt 0:04:30]} 44. g3 {[%emt 0:01:30]} d4 {[%emt 0:00:30]} 45. Qd3 {[%emt 0:03:30]} Re3 {[%emt 0:09:22]} 46. Qc4+ {[%emt 0:01:30]} Qd5 {[%emt 0:01:02]} 47. Qxd5+ {[%emt 0:00:30]} cxd5 {[%emt 0:00:32]} 48. Bxa5 {[%emt 0:00:30]} Nf3+ {[%emt 0:00:42]} 49. Kg2 {[%emt 0:00:30]} Ne5 {[%emt 0:03:05]} 50. Bb6 {[%emt 0:03:30]} Re4 {[%emt 0:00:36]} 51. Rd2 {[%emt 0:01:30]} Nc6 {[%emt 0:02:31]} 52. a4 {[%emt 0:00:30]} Re3 {[%emt 0:00:32]} 53. b4 {[%emt 0:01:30]} Nxb4 {[%emt 0:02:06]} 54. Rxd4 {[%emt 0:00:00]} Rb3 {[%emt 0:05:29]} 55. Rd2 {[%emt 0:01:00]} Kf7 {[%emt 0:01:18]} 56. Bc5 {[%emt 0:02:05]} Ke6 {[%emt 0:00:57]} 57. Bf8 {[%emt 0:01:15]} Kf6 {[%emt 0:02:08]} 58. a5 {[%emt 0:03:16]} Kg6 {[%emt 0:00:34]} 59. Bxb4 {[%emt 0:00:59]} Rxb4 {[%emt 0:00:09]} 60. Rxd5 {[%emt 0:00:07]} Ra4 {[%emt 0:01:38]} 61. Rd6+ {[%emt 0:00:20]} Kg7 {[%emt 0:00:07]} 62. a6 {[%emt 0:00:07]} Ra2+ {[%emt 0:01:28]} 63. Kf3 {[%emt 0:00:14]} Ra3+ {[%emt 0:00:06]} 64. Ke4 {[%emt 0:00:55]} Ra5 {[%emt 0:00:32]} 65. Kd4 {[%emt 0:00:22]} Ra3 {[%emt 0:00:30]} 66. Kc5 {[%emt 0:00:30]} Rxg3 {[%emt 0:00:22]} 67. a7 {[%emt 0:00:10]} Ra3 {[%emt 0:00:10]} 68. Kb6 {[%emt 0:00:10]} Rb3+ {[%emt 0:00:20]} 69. Kc7 {[%emt 0:00:09]} Ra3 {[%emt 0:01:40]} 70. Kb7 {[%emt 0:00:08]} Rb3+ {[%emt 0:00:13]} 71. Rb6 {[%emt 0:00:09]} Ra3 {[%emt 0:00:09]} 72. a8=Q {[%emt 0:00:14]} 1-0

[Event "28th CRO-chT 1A-Men 2019"]
[Site "Mali Losinj"]
[Date "2019.10.04"]
[Round "7.19"]
[White "Kryvoruchko, Yuriy"]
[Black "Fedorchuk, Sergey A."]
[Result "1-0"]
[ECO "E16"]
[WhiteElo "2669"]
[BlackElo "2619"]
[Annotator "ChessBase"]
[PlyCount "81"]
[EventDate "2019.09.28"]
[EventType "team-tourn"]
[EventCountry "CRO"]
[SourceTitle "playchess.com"]
[Source "ChessBase"]
[SourceQuality "1"]
[TimeControl "40/5400+30:1800+30"]

1. d4 {[%emt 0:00:30]} Nf6 {[%emt 0:00:30]} 2. c4 {[%emt 0:00:00]} e6 {[%emt 0:00:30]} 3. Nf3 {[%emt 0:00:00]} b6 {[%emt 0:01:30]} 4. g3 {[%emt 0:00:00]} Bb4+ {[%emt 0:01:30]} 5. Bd2 {[%emt 0:00:00]} a5 {[%emt 0:00:30]} 6. Bg2 {[%emt 0:00:30]} Bb7 {[%emt 0:00:30]} 7. O-O {[%emt 0:00:30]} O-O {[%emt 0:00:30]} 8. Bf4 {[%emt 0:00:30]} Be7 {[%emt 0:00:30]} 9. Qc2 {[%emt 0:00:00]} Be4 {[%emt 0:03:30]} 10. Qc1 {[%emt 0:01:00]} Bb7 {[%emt 0:01:30]} 11. Nc3 {[%emt 0:00:00]} Ne4 {[%emt 0:02:30]} 12. Nb5 {[%emt 0:00:00]} Na6 {[%emt 0:23:30]} 13. Ng5 {[%emt 0:12:30]} d5 {[%emt 0:15:30]} 14. Nxe4 {[%emt 0:00:30]} dxe4 {[%emt 0:00:00]} 15. Rd1 {[%emt 0:00:30]} f5 {[%emt 0:00:00]} 16. d5 {[%emt 0:02:30]} exd5 {[%emt 0:16:30]} 17. cxd5 {[%emt 0:00:30]} Bxd5 {[%emt 0:04:30]} 18. Nxc7 {[%emt 0:04:30]} Nxc7 {[%emt 0:00:30]} 19. Bxc7 {[%emt 0:00:30]} Qd7 {[%emt 0:00:30]} 20. Bxb6 {[%emt 0:02:30]} Qe6 {[%emt 0:00:00]} 21. Qd2 {[%emt 0:06:30]} Bb3 {[%emt 0:06:00]} 22. axb3 {[%emt 0:00:30]} Qxb6 {[%emt 0:00:30]} 23. Qd5+ {[%emt 0:03:30]} Kh8 {[%emt 0:00:30]} 24. e3 {[%emt 0:00:30]} Bf6 {[%emt 0:10:09]} 25. Rab1 {[%emt 0:06:30]} g6 {[%emt 0:00:22]} 26. Rdc1 {[%emt 0:00:30]} Rad8 {[%emt 0:02:38]} 27. Rc6 {[%emt 0:02:30]} Qb7 {[%emt 0:04:04]} 28. Qe6 {[%emt 0:10:30]} Rde8 {[%emt 0:00:36]} 29. Qc4 {[%emt 0:03:30]} Rc8 {[%emt 0:01:03]} 30. Rc5 {[%emt 0:03:30]} Rxc5 {[%emt 0:01:25]} 31. Qxc5 {[%emt 0:00:30]} Qb4 {[%emt 0:01:02]} 32. Qd5 {[%emt 0:00:00]} Rd8 {[%emt 0:01:32]} 33. Qf7 {[%emt 0:00:00]} Qe7 {[%emt 0:00:26]} 34. Qc4 {[%emt 0:00:30]} Qb4 {[%emt 0:00:18]} 35. Qa6 {[%emt 0:00:30]} Bg7 {[%emt 0:01:47]} 36. Bf1 {[%emt 0:00:30]} Qxb3 {[%emt 0:00:09]} 37. Qxa5 {[%emt 0:00:30]} Rb8 {[%emt 0:00:02]} 38. Qc7 {[%emt 0:00:30]} Bxb2 {[%emt 0:00:48]} 39. Rd1 {[%emt 0:00:00]} Bg7 {[%emt 0:01:06]} 40. Rd7 {[%emt 0:00:00]} Qg8 {[%emt 0:00:00]} 41. Rxg7 {[%emt 0:00:30]} 1-0

[Event "28th CRO-chT 1A-Men 2019"]
[Site "Mali Losinj"]
[Date "2019.10.04"]
[Round "7.20"]
[White "Livaic, Leon"]
[Black "Malakhov, Vladimir"]
[Result "1/2-1/2"]
[ECO "D13"]
[WhiteElo "2495"]
[BlackElo "2662"]
[Annotator "ChessBase"]
[PlyCount "110"]
[EventDate "2019.09.28"]
[EventType "team-tourn"]
[EventCountry "CRO"]
[SourceTitle "playchess.com"]
[Source "ChessBase"]
[SourceQuality "1"]
[TimeControl "40/5400+30:1800+30"]

1. d4 {[%emt 0:00:30]} d5 {[%emt 0:00:30]} 2. c4 {[%emt 0:00:00]} c6 {[%emt 0:00:00]} 3. cxd5 {[%emt 0:01:00]} cxd5 {[%emt 0:00:00]} 4. Nf3 {[%emt 0:00:30]} Nc6 {[%emt 0:02:30]} 5. Nc3 {[%emt 0:00:30]} e6 {[%emt 0:08:30]} 6. Bf4 {[%emt 0:02:30]} Bd6 {[%emt 0:01:30]} 7. Bxd6 {[%emt 0:00:30]} Qxd6 {[%emt 0:00:30]} 8. e3 {[%emt 0:00:30]} Nf6 {[%emt 0:01:30]} 9. Bd3 {[%emt 0:02:30]} O-O {[%emt 0:00:30]} 10. O-O {[%emt 0:00:30]} Bd7 {[%emt 0:00:00]} 11. Rc1 {[%emt 0:01:30]} Rfc8 {[%emt 0:01:00]} 12. Qe2 {[%emt 0:07:30]} Be8 {[%emt 0:06:30]} 13. Rfd1 {[%emt 0:06:30]} a6 {[%emt 0:05:30]} 14. Bb1 {[%emt 0:14:30]} Rc7 {[%emt 0:18:30]} 15. a3 {[%emt 0:15:30]} Rac8 {[%emt 0:02:30]} 16. Na2 {[%emt 0:03:30]} Na5 {[%emt 0:15:30]} 17. Rxc7 {[%emt 0:01:30]} Qxc7 {[%emt 0:00:30]} 18. Qe1 {[%emt 0:10:30]} Qb6 {[%emt 0:00:00]} 19. Qb4 {[%emt 0:02:30]} Qxb4 {[%emt 0:00:00]} 20. Nxb4 {[%emt 0:02:30]} Nd7 {[%emt 0:03:30]} 21. Nd2 {[%emt 0:04:30]} f6 {[%emt 0:11:30]} 22. Na2 {[%emt 0:04:01]} Nc4 {[%emt 0:03:57]} 23. Nxc4 {[%emt 0:02:05]} dxc4 {[%emt 0:00:04]} 24. Nc3 {[%emt 0:02:50]} b5 {[%emt 0:01:16]} 25. d5 {[%emt 0:01:06]} exd5 {[%emt 0:01:31]} 26. Bf5 {[%emt 0:03:43]} Rc5 {[%emt 0:00:30]} 27. Bxd7 {[%emt 0:05:05]} Bxd7 {[%emt 0:00:46]} 28. Nxd5 {[%emt 0:00:36]} Be8 {[%emt 0:07:56]} 29. e4 {[%emt 0:00:56]} a5 {[%emt 0:01:35]} 30. f3 {[%emt 0:00:30]} b4 {[%emt 0:03:42]} 31. axb4 {[%emt 0:00:08]} axb4 {[%emt 0:00:03]} 32. Nxb4 {[%emt 0:00:42]} Rb5 {[%emt 0:00:02]} 33. Nd5 {[%emt 0:00:15]} Rxb2 {[%emt 0:00:10]} 34. Rc1 {[%emt 0:00:11]} Bf7 {[%emt 0:02:52]} 35. Rxc4 {[%emt 0:00:05]} Bxd5 {[%emt 0:00:00]} 36. exd5 {[%emt 0:00:48]} Rd2 {[%emt 0:00:00]} 37. Rc8+ {[%emt 0:00:33]} Kf7 {[%emt 0:00:23]} 38. Rc7+ {[%emt 0:00:21]} Kf8 {[%emt 0:00:23]} 39. Rd7 {[%emt 0:00:19]} g5 {[%emt 0:00:16]} 40. Rxh7 {[%emt 0:00:00]} Rxd5 {[%emt 0:00:00]} 41. Kf2 {[%emt 0:02:46]} Rd2+ {[%emt 0:01:34]} 42. Kg3 {[%emt 0:01:30]} Rd4 {[%emt 0:00:30]} 43. h3 {[%emt 0:01:30]} Ra4 {[%emt 0:00:30]} 44. h4 {[%emt 0:02:30]} gxh4+ {[%emt 0:00:30]} 45. Rxh4 {[%emt 0:00:30]} Ra7 {[%emt 0:00:30]} 46. Rb4 {[%emt 0:00:30]} Kg7 {[%emt 0:00:00]} 47. Kf4 {[%emt 0:00:00]} Kg6 {[%emt 0:00:00]} 48. g4 {[%emt 0:00:00]} Rc7 {[%emt 0:00:30]} 49. Rb3 {[%emt 0:00:30]} Rc6 {[%emt 0:01:30]} 50. Rb5 {[%emt 0:00:30]} Ra6 {[%emt 0:00:30]} 51. Rd5 {[%emt 0:00:30]} Rb6 {[%emt 0:00:00]} 52. Ke4 {[%emt 0:00:30]} Rb4+ {[%emt 0:00:00]} 53. Rd4 {[%emt 0:00:30]} Rxd4+ {[%emt 0:00:30]} 54. Kxd4 {[%emt 0:00:00]} f5 {[%emt 0:00:30]} 55. gxf5+ {[%emt 0:00:00]} Kxf5 {[%emt 0:00:30]} 1/2-1/2

[Event "28th CRO-chT 1A-Men 2019"]
[Site "Mali Losinj"]
[Date "2019.10.04"]
[Round "7.21"]
[White "Stevic, Hrvoje"]
[Black "Blazeka, Matej"]
[Result "1-0"]
[ECO "C42"]
[WhiteElo "2570"]
[BlackElo "2385"]
[Annotator "ChessBase"]
[PlyCount "75"]
[EventDate "2019.09.28"]
[EventType "team-tourn"]
[EventCountry "CRO"]
[SourceTitle "playchess.com"]
[Source "ChessBase"]
[SourceQuality "1"]
[TimeControl "40/5400+30:1800+30"]

1. e4 {[%emt 0:03:30]} e5 {[%emt 0:00:30]} 2. Nf3 {[%emt 0:00:30]} Nf6 {[%emt 0:00:00]} 3. Nxe5 {[%emt 0:00:30]} d6 {[%emt 0:00:00]} 4. Nf3 {[%emt 0:00:00]} Nxe4 {[%emt 0:00:30]} 5. Bd3 {[%emt 0:00:00]} Nf6 {[%emt 0:03:30]} 6. O-O {[%emt 0:00:30]} Be7 {[%emt 0:00:30]} 7. h3 {[%emt 0:00:30]} O-O {[%emt 0:00:30]} 8. c3 {[%emt 0:00:30]} b6 {[%emt 0:08:30]} 9. Bc2 {[%emt 0:00:30]} Bb7 {[%emt 0:02:30]} 10. d4 {[%emt 0:00:00]} Nbd7 {[%emt 0:07:30]} 11. Bf4 {[%emt 0:07:00]} Re8 {[%emt 0:05:30]} 12. Nbd2 {[%emt 0:01:30]} Bf8 {[%emt 0:04:30]} 13. Re1 {[%emt 0:04:30]} Rxe1+ {[%emt 0:01:30]} 14. Qxe1 {[%emt 0:00:30]} Qe7 {[%emt 0:00:30]} 15. Qf1 {[%emt 0:00:30]} Re8 {[%emt 0:00:30]} 16. c4 {[%emt 0:06:30]} c5 {[%emt 0:09:30]} 17. d5 {[%emt 0:22:30]} b5 {[%emt 0:02:30]} 18. b3 {[%emt 0:01:30]} Ne5 {[%emt 0:10:30]} 19. Nxe5 {[%emt 0:19:30]} dxe5 {[%emt 0:00:30]} 20. Bg5 {[%emt 0:00:30]} h6 {[%emt 0:03:30]} 21. Bh4 {[%emt 0:02:30]} g5 {[%emt 0:12:30]} 22. Bg3 {[%emt 0:00:00]} Bg7 {[%emt 0:06:27]} 23. Re1 {[%emt 0:01:00]} Nd7 {[%emt 0:00:49]} 24. Bf5 {[%emt 0:06:30]} bxc4 {[%emt 0:05:54]} 25. bxc4 {[%emt 0:00:30]} Nb6 {[%emt 0:00:55]} 26. f3 {[%emt 0:08:16]} Ba6 {[%emt 0:02:42]} 27. Bd3 {[%emt 0:03:15]} f5 {[%emt 0:02:34]} 28. Bf2 {[%emt 0:01:25]} Qf7 {[%emt 0:07:02]} 29. Bxc5 {[%emt 0:02:11]} e4 {[%emt 0:00:37]} 30. fxe4 {[%emt 0:00:58]} Bc3 {[%emt 0:00:07]} 31. Re2 {[%emt 0:03:04]} Qc7 {[%emt 0:02:13]} 32. Nb3 {[%emt 0:01:53]} Bxc4 {[%emt 0:00:37]} 33. Bxc4 {[%emt 0:00:18]} Nxc4 {[%emt 0:00:05]} 34. Qxf5 {[%emt 0:01:29]} Ne5 {[%emt 0:00:48]} 35. Rf2 {[%emt 0:01:33]} a5 {[%emt 0:00:34]} 36. Bd4 {[%emt 0:00:23]} a4 {[%emt 0:00:29]} 37. Bxe5 {[%emt 0:00:28]} Bxe5 {[%emt 0:00:34]} 38. Qg6+ {[%emt 0:00:03]} 1-0

[Event "28th CRO-chT 1A-Men 2019"]
[Site "Mali Losinj"]
[Date "2019.10.04"]
[Round "7.22"]
[White "Rogulj, Branko"]
[Black "Kozul, Zdenko"]
[Result "0-1"]
[ECO "B24"]
[WhiteElo "2394"]
[BlackElo "2581"]
[Annotator "ChessBase"]
[PlyCount "88"]
[EventDate "2019.09.28"]
[EventType "team-tourn"]
[EventCountry "CRO"]
[SourceTitle "playchess.com"]
[Source "ChessBase"]
[SourceQuality "1"]
[TimeControl "40/5400+30:1800+30"]

1. e4 {[%emt 0:00:30]} c5 {[%emt 0:00:30]} 2. Nc3 {[%emt 0:00:00]} e6 {[%emt 0:01:30]} 3. Nge2 {[%emt 0:01:00]} Nc6 {[%emt 0:00:30]} 4. g3 {[%emt 0:01:30]} Nf6 {[%emt 0:03:30]} 5. Bg2 {[%emt 0:00:30]} Be7 {[%emt 0:00:00]} 6. O-O {[%emt 0:00:30]} O-O {[%emt 0:01:00]} 7. h3 {[%emt 0:05:30]} h6 {[%emt 0:05:30]} 8. Kh2 {[%emt 0:00:30]} d5 {[%emt 0:08:30]} 9. exd5 {[%emt 0:00:30]} Nxd5 {[%emt 0:00:00]} 10. Nxd5 {[%emt 0:02:30]} exd5 {[%emt 0:01:00]} 11. d4 {[%emt 0:00:30]} cxd4 {[%emt 0:01:30]} 12. Nxd4 {[%emt 0:00:30]} Nxd4 {[%emt 0:00:30]} 13. Qxd4 {[%emt 0:00:00]} Be6 {[%emt 0:00:30]} 14. c3 {[%emt 0:25:00]} Bf6 {[%emt 0:07:30]} 15. Qb4 {[%emt 0:00:30]} a5 {[%emt 0:01:30]} 16. Qb5 {[%emt 0:01:30]} a4 {[%emt 0:03:30]} 17. a3 {[%emt 0:00:30]} d4 {[%emt 0:05:30]} 18. Bf4 {[%emt 0:02:30]} dxc3 {[%emt 0:09:30]} 19. bxc3 {[%emt 0:00:30]} Bxc3 {[%emt 0:00:30]} 20. Rac1 {[%emt 0:05:30]} Qf6 {[%emt 0:02:30]} 21. Bxb7 {[%emt 0:01:30]} Ra5 {[%emt 0:06:30]} 22. Qd3 {[%emt 0:05:30]} Bb2 {[%emt 0:01:30]} 23. Rb1 {[%emt 0:06:30]} Rd8 {[%emt 0:17:30]} 24. Qe2 {[%emt 0:01:30]} Be5 {[%emt 0:00:30]} 25. Rb4 {[%emt 0:06:30]} Bb3 {[%emt 0:01:33]} 26. Bxe5 {[%emt 0:02:30]} Rxe5 {[%emt 0:00:27]} 27. Qf3 {[%emt 0:03:30]} Rf5 {[%emt 0:02:32]} 28. Qe2 {[%emt 0:01:30]} Rc5 {[%emt 0:04:04]} 29. Rf4 {[%emt 0:05:30]} Qd6 {[%emt 0:00:30]} 30. Qa6 {[%emt 0:02:20]} Qxa6 {[%emt 0:02:05]} 31. Bxa6 {[%emt 0:00:36]} Rd2 {[%emt 0:00:30]} 32. Ra1 {[%emt 0:09:22]} g5 {[%emt 0:00:11]} 33. Rf3 {[%emt 0:00:15]} Bd5 {[%emt 0:05:46]} 34. Rf5 {[%emt 0:00:36]} Rcc2 {[%emt 0:00:04]} 35. Kg1 {[%emt 0:01:42]} Be6 {[%emt 0:00:24]} 36. Rf3 {[%emt 0:01:17]} Bxh3 {[%emt 0:00:29]} 37. Bd3 {[%emt 0:00:41]} Rc5 {[%emt 0:00:17]} 38. Re3 {[%emt 0:02:44]} Be6 {[%emt 0:00:43]} 39. Be4 {[%emt 0:00:23]} Kg7 {[%emt 0:02:19]} 40. Kf1 {[%emt 0:00:00]} Rb2 {[%emt 0:00:00]} 41. Rd1 {[%emt 0:16:04]} Bb3 {[%emt 0:04:36]} 42. Ra1 {[%emt 0:01:10]} Re5 {[%emt 0:01:30]} 43. g4 {[%emt 0:00:36]} Be6 {[%emt 0:01:30]} 44. f3 {[%emt 0:06:26]} h5 {[%emt 0:01:30]} 0-1